bitfinex/quotes_ETHUSD_20241130
["timestamp","ask_amount","ask_price","bid_price","bid_amount"]
[1733007769551,2.68796,3720.3,3719.4,0.837734]
[1733007769757,2.68796,3720.3,3719.4,3.0]
[1733007769980,2.54315999,3720.4,3718.9,0.268902]
[1733007770300,5.68737,3721.1,3718.8,0.4029]
[1733007770301,2.54315999,3720.8,3718.8,0.4029]
[1733007770454,2.68752,3720.9,3719.7,2.68837]
[1733007770793,2.68772,3720.7,3719.8,2.6883]
[1733007770958,2.68749,3721.0,3720.1,2.68806]
[1733007771158,0.8248,3721.1,3719.6,0.7719]
[1733007771363,2.68774,3720.6,3719.8,2.68829]
[1733007771565,2.68774,3720.6,3719.9,2.68823]
[1733007771899,2.68762,3720.8,3720.0,2.68815]
[1733007772074,2.68777,3720.6,3719.8,2.68829]
[1733007772278,2.68777,3720.6,3719.9,2.68822]
[1733007772478,2.68762,3720.8,3720.0,2.68815]
[1733007772697,2.68777,3720.6,3719.8,2.68829]
[1733007773014,2.68781,3720.5,3719.9,2.68824]
[1733007773164,3.2588766,3720.7,3720.0,2.68816]
[1733007773565,3.2588766,3720.7,3719.8,2.68829]
[1733007773566,2.68775,3720.6,3719.8,5.37658]
[1733007773870,2.68775,3720.6,3719.8,2.68829]
[1733007774178,2.68781,3720.5,3719.8,2.68829]
[1733007774370,0.0278942,3720.5,3719.9,2.68821]
[1733007774908,0.0278942,3720.5,3720.0,2.68816]
[1733007776779,2.7157042,3720.5,3719.8,2.6883]
[1733007777180,2.7157042,3720.5,3719.9,2.68824]
[1733007777895,0.0278942,3720.5,3719.9,2.68824]
[1733007779298,0.0278942,3720.5,3719.9,3.68824]
[1733007779493,0.0278942,3720.5,3720.1,2.68809]
[1733007779682,0.0278942,3720.5,3720.1,2.68805]
[1733007779892,0.0278942,3720.5,3720.2,2.68796]
[1733007780093,0.0278942,3720.5,3720.0,2.68813]
[1733007781139,0.0278942,3720.5,3720.1,2.68808]
[1733007781693,0.0278942,3720.5,3720.0,2.68813]
[1733007782906,0.0278942,3720.5,3720.1,2.68808]
[1733007784161,0.0278942,3720.5,3720.2,2.68797]
[1733007785428,0.25129654,3720.4,3720.2,2.68797]
[1733007785634,0.0278942,3720.5,3720.2,2.68797]
[1733007785817,0.25129283,3720.4,3720.2,2.68797]
[1733007786023,0.0278942,3720.5,3720.2,2.68797]
[1733007786237,0.0278942,3720.5,3719.9,1.714849]
[1733007786474,0.25129303,3720.4,3720.2,2.68801]
[1733007786675,0.0278942,3720.5,3720.2,2.68801]
[1733007786883,0.25131819,3720.4,3720.2,2.68801]
[1733007787179,0.0278942,3720.5,3720.2,2.68801]
[1733007787402,0.25131199,3720.4,3720.2,2.68801]
[1733007787581,0.0278942,3720.5,3720.1,2.68806]
[1733007787737,0.25130781,3720.4,3719.9,3.68821]
[1733007787931,0.25127748,3720.3,3719.9,1.0]
[1733007788169,0.0278942,3720.5,3720.1,2.68804]
[1733007788369,0.25130182,3720.4,3720.1,2.68804]
[1733007788577,0.0278942,3720.4,3720.3,2.6879]
[1733007788889,0.27919638,3720.4,3720.3,2.6879]
[1733007789037,0.0278942,3720.4,3720.3,4.050294]
[1733007789985,0.0278942,3720.4,3720.3,3.225494]
[1733007790479,0.0278942,3720.4,3720.3,2.6879]
[1733007790878,0.0278942,3720.4,3720.3,5.6879]
[1733007791083,0.0278942,3720.4,3720.3,6.5127]
[1733007791251,0.40209729,3721.3,3720.3,5.6879]
[1733007791456,0.25126598,3721.2,3721.0,2.68739]
[1733007791672,0.40209729,3721.5,3721.0,2.68744]
[1733007791838,0.25128767,3721.4,3720.8,2.68757]
[1733007792039,0.25128767,3721.3,3720.9,2.68745]
[1733007792238,0.25128767,3721.3,3720.8,2.68757]
[1733007792239,3.08910729,3721.6,3721.0,2.68744]
[1733007792473,0.25127874,3721.5,3721.0,2.68742]
[1733007792678,0.25127874,3721.4,3721.0,2.68742]
[1733007792934,2.68695,3721.7,3721.0,2.68742]
[1733007793134,0.25127647,3721.6,3721.0,2.68742]
[1733007793382,0.40209729,3721.8,3720.6,0.8248]
[1733007793383,0.25127647,3721.5,3721.1,2.68736]
[1733007793548,0.8013,3721.9,3721.1,0.537487]
[1733007793750,0.25125347,3721.8,3721.4,2.6871]
[1733007793983,0.25125347,3721.7,3721.4,2.6871]
[1733007794192,0.25125347,3721.6,3721.2,2.68729]
[1733007794339,0.8013,3721.9,3721.2,2.68729]
[1733007794536,0.25111731,3721.8,3720.6,0.8248]
[1733007794766,0.8013,3721.9,3721.1,2.68735]
[1733007794767,0.25111731,3721.7,3721.1,2.68735]
[1733007795045,0.25111731,3721.6,3721.0,2.68743]
[1733007795243,0.8013,3721.6,3720.7,0.90557]
[1733007795470,3.73949731,3721.6,3720.8,2.68758]
[1733007795787,3.48838,3721.6,3720.9,2.68751]
[1733007796193,0.8013,3722.1,3721.2,3.51209]
[1733007796410,2.93765935,3722.0,3721.3,2.68722]
[1733007796701,0.25092935,3721.9,3721.3,2.68722]
[1733007796856,0.25092935,3721.8,3721.3,2.68722]
[1733007797052,0.25092935,3721.7,3721.3,2.68722]
[1733007797252,2.68673,3722.0,3721.3,2.68722]
[1733007797253,0.25092935,3721.9,3721.3,2.68722]
[1733007797495,0.2509856,3721.8,3721.3,2.68722]
[1733007797698,0.2509856,3721.7,3721.4,2.68715]
[1733007797906,0.25097902,3722.0,3721.5,2.68705]
[1733007798089,0.25097902,3721.9,3721.5,2.68705]
[1733007798398,0.25097902,3721.8,3721.3,2.68719]
[1733007798553,0.25097902,3721.7,3721.3,2.68719]
[1733007798783,0.25097902,3722.0,3721.3,2.68719]
[1733007798989,0.25097902,3721.9,3721.3,2.68719]
[1733007799290,0.25097902,3721.8,3721.3,2.68719]
[1733007799533,0.25097902,3721.7,3721.3,2.68719]
[1733007799839,0.25097902,3721.9,3721.1,2.68737]
[1733007800002,0.25097902,3721.9,3720.7,3.59318]
[1733007800003,0.8013,3721.5,3720.7,3.59318]
[1733007800204,2.68724,3721.3,3720.6,3.0]
[1733007800421,0.8013,3721.5,3720.8,3.0]
[1733007800728,3.0,3722.9,3721.4,2.6871]
[1733007800729,0.8013,3721.9,3721.4,2.6871]
[1733007800929,0.25100286,3721.8,3721.4,2.6871]
[1733007801234,0.25100286,3721.8,3721.0,2.68744]
[1733007801402,0.25100286,3721.8,3721.1,2.68737]
[1733007801606,0.8013,3721.9,3721.6,2.68701]
[1733007801805,0.8013,3721.9,3721.5,2.68708]
[1733007802003,0.8013,3721.9,3721.3,2.6872]
[1733007802187,0.8013,3721.9,3721.6,2.68701]
[1733007802429,2.68643,3722.5,3721.9,2.68679]
[1733007802430,0.25100286,3722.3,3721.9,2.68679]
[1733007802614,1.04960286,3722.5,3722.0,2.68671]
[1733007802801,0.7986,3722.5,3722.0,2.68671]
[1733007803004,0.7986,3722.5,3721.7,2.68693]
[1733007803201,3.48497,3722.5,3721.7,0.7752]
[1733007803421,3.48497,3722.5,3721.7,4.0895051]
[1733007803935,3.48497,3722.5,3721.7,3.3143051]
[1733007804229,3.48497,3722.5,3721.8,2.68684]
[1733007804420,0.7986,3722.5,3721.9,2.68673]
[1733007805438,3.48498,3722.5,3721.8,2.68685]
[1733007805791,0.7986,3722.5,3721.7,3.3143451]
[1733007806031,0.7986,3722.5,3722.0,2.68671]
[1733007806279,1.09481222,3723.2,3722.1,0.02686536]
[1733007806280,2.68606,3723.0,3722.1,0.02686536]
[1733007806494,0.8221,3722.9,3722.4,2.68641]
[1733007806778,0.9814607,3723.4,3722.7,0.7973]
[1733007806938,1.2320246,3723.4,3722.7,3.48351]
[1733007807135,3.9177446,3723.4,3722.7,3.48351]
[1733007807358,3.6671807,3723.4,3722.7,3.48351]
[1733007807765,0.02707186,3723.3,3722.7,3.48351]
[1733007808166,3.6171807,3723.4,3722.7,2.68621]
[1733007809868,3.6171807,3723.4,3722.8,2.68613]
[1733007810072,0.1093607,3723.4,3722.7,0.81332901]
[1733007810239,0.1093607,3723.4,3723.2,2.6858]
[1733007810575,0.02517755,3723.3,3723.2,2.6858]
[1733007810736,0.1093607,3723.4,3723.2,2.6858]
[1733007811136,0.1093607,3723.4,3723.3,2.68578]
[1733007811534,0.1093607,3723.4,3723.3,3.51668]
[1733007811736,0.1093607,3723.4,3723.3,0.8309]
[1733007811931,0.1093607,3723.4,3722.8,0.8309]
[1733007812177,0.1093607,3723.4,3723.2,2.68579]
[1733007812380,0.1093607,3723.4,3723.3,6.785259]
[1733007813682,0.1093607,3723.4,3723.3,0.268579]
[1733007813897,0.1093607,3723.4,3723.0,3.8309]
[1733007813898,0.1093607,3723.4,3723.0,3.5169]
[1733007814073,0.1093607,3723.4,3723.1,3.0]
[1733007814387,0.02403475,3723.3,3723.2,2.68586]
[1733007814545,0.02403475,3723.3,3723.2,5.68586]
[1733007814751,0.02403475,3723.3,3722.8,3.0]
[1733007814998,0.7594,3723.2,3722.5,2.6863]
[1733007815147,0.02403475,3723.3,3723.1,2.54315999]
[1733007815347,0.1093607,3723.4,3723.3,3.51668]
[1733007816277,0.1093607,3723.4,3723.3,6.51668]
[1733007821967,0.1093607,3723.4,3723.3,9.05983999]
[1733007822881,0.1093607,3723.4,3723.0,3.46509]
[1733007823080,0.1093607,3723.4,3723.1,0.346509]
[1733007823397,0.1093607,3723.4,3723.3,2.68578]
[1733007823783,0.13362526,3723.4,3723.3,2.68578]
[1733007824157,0.1093607,3723.4,3723.3,2.68578]
[1733007824351,0.13356788,3723.4,3723.3,2.68578]
[1733007824593,0.13356788,3723.4,3723.3,3.3355119]
[1733007825502,0.1093607,3723.4,3723.3,3.3355119]
[1733007825686,0.13356431,3723.4,3723.3,3.3355119]
[1733007826758,0.1093607,3723.4,3722.9,3.0]
[1733007826953,0.1093607,3723.4,3722.7,2.68615]
[1733007826954,0.0241806,3723.3,3722.7,2.68619]
[1733007827195,0.0241806,3723.3,3722.6,1.7683]
[1733007827369,0.0241806,3723.3,3722.6,4.63142]
[1733007827558,2.7099806,3723.3,3722.6,4.63142]
[1733007828006,0.0241806,3723.3,3722.6,4.6314]
[1733007828294,0.9140607,3723.4,3722.6,1.17683]
[1733007828496,0.9140607,3723.4,3722.6,1.0]
[1733007828670,2.68586,3723.2,3722.6,1.0]
[1733007828870,0.02371159,3723.1,3722.6,1.0]
[1733007829069,0.9140607,3723.4,3722.6,1.0]
[1733007829070,0.1093607,3723.4,3723.3,2.68578]
[1733007829258,0.1093607,3723.4,3723.3,3.45408]
[1733007829464,0.1093607,3723.4,3723.3,7.32507723]
[1733007831332,0.1093607,3723.4,3723.0,2.54315999]
[1733007831333,0.1093607,3723.4,3723.0,3.0]
[1733007831475,0.1093607,3723.4,3723.3,2.68578]
[1733007831803,0.1093607,3723.4,3723.3,6.48093168]
[1733007832012,0.1093607,3723.4,3723.3,6.45408]
[1733007834099,0.8047,3724.3,3724.0,8.7206393]
[1733007834282,0.8047,3724.3,3723.8,2.68536]
[1733007834460,0.02534114,3724.2,3723.9,2.6853]
[1733007834660,2.68519,3724.2,3723.4,0.645418]
[1733007834857,0.02531437,3724.1,3723.5,2.68559]
[1733007835189,0.02531437,3724.1,3723.0,3.31145999]
[1733007835190,0.8047,3724.0,3723.2,3.0]
[1733007835395,0.8047,3724.3,3723.7,2.68544]
[1733007835709,0.8047,3724.3,3723.8,3.0]
[1733007835863,2.68457,3725.0,3724.2,2.68514]
[1733007836058,2.68457,3725.0,3723.3,1.322616]
[1733007836059,1.05554503,3724.9,3724.4,2.68499]
[1733007836296,1.05554503,3724.9,3723.4,2.54315999]
[1733007836297,0.25084503,3724.8,3724.1,2.68515]
[1733007836514,2.54315999,3725.4,3723.3,4.322616]
[1733007836515,0.25084503,3724.7,3723.7,2.68549]
[1733007836726,1.05554503,3724.6,3724.0,2.68526]
[1733007836925,3.74040503,3724.6,3723.8,5.953939]
[1733007837130,0.8016,3724.1,3723.6,3.0]
[1733007837637,0.8016,3724.1,3723.5,2.68558]
[1733007837920,0.8016,3724.1,3723.3,0.554316]
[1733007838124,0.02532983,3724.0,3723.5,2.6856]
[1733007838282,0.8016,3724.1,3723.5,2.6856]
[1733007838485,1.05264263,3724.1,3723.5,2.6856]
[1733007838711,0.02530295,3724.0,3723.5,2.6856]
[1733007838880,0.8016,3724.1,3723.5,2.6856]
[1733007839096,0.02530295,3724.0,3723.5,0.62810576]
[1733007839300,0.8016,3724.1,3723.6,2.68555]
[1733007840131,0.02530295,3724.0,3723.6,2.68555]
[1733007840438,0.02530295,3724.0,3723.4,3.0411416]
[1733007840439,0.02530295,3724.0,3723.4,0.3554316]
[1733007840606,2.68555,3723.7,3722.7,2.68622]
[1733007840806,2.68555,3723.7,3722.8,3.450832]
[1733007841008,0.7988,3723.6,3722.8,3.136922]
[1733007841356,2.6858,3723.3,3722.8,0.450832]
[1733007841524,2.6858,3723.3,3722.6,3.68625]
[1733007841525,2.68613,3722.9,3722.6,1.0]
[1733007841835,0.7988,3723.4,3722.6,1.0]
[1733007841836,3.48502,3722.7,3722.6,1.0]
[1733007842899,3.73607853,3722.7,3722.6,1.0]
[1733007843393,3.73585562,3722.7,3722.6,1.0]
[1733007843814,4.28585562,3722.7,3722.6,1.0]
[1733007844137,8.63868874,3722.7,3722.6,1.0]
[1733007844694,8.63789167,3722.7,3722.6,1.0]
[1733007846143,8.23706083,3722.7,3722.6,1.0]
[1733007846813,8.63733276,3722.7,3722.6,1.0]
[1733007847006,8.23706083,3722.7,3722.6,1.0]
[1733007847210,8.23706083,3722.7,3722.6,0.80342758]
[1733007847435,0.7988,3721.3,3720.5,3.0]
[1733007847654,0.7988,3721.3,3720.8,3.0]
[1733007848339,0.7988,3721.3,3720.6,0.650997]
[1733007848550,0.7988,3721.3,3720.0,0.8221]
[1733007848697,0.7988,3721.3,3720.1,5.37618]
[1733007848910,0.7988,3721.3,3720.0,3.36525999]
[1733007849109,0.7988,3721.3,3720.7,2.6876]
[1733007849345,0.7988,3721.8,3720.7,0.8221]
[1733007849555,2.68656,3722.3,3720.9,2.68752]
[1733007849851,2.68656,3722.3,3721.5,2.68707]
[1733007850004,0.7988,3722.6,3721.4,3.0]
[1733007850005,2.6866,3722.2,3721.4,3.0]
[1733007850653,2.68657,3722.3,3721.5,2.68702]
[1733007850841,2.68657,3722.3,3721.6,2.687]
[1733007851036,0.7988,3722.6,3721.5,0.02686805]
[1733007851363,0.7988,3722.6,3721.9,2.68677]
[1733007851596,0.7988,3722.6,3722.1,2.68664]
[1733007851985,0.7988,3722.6,3722.1,2.68661]
[1733007852354,0.7988,3722.6,3722.1,2.63661]
[1733007852750,0.7988,3722.6,3722.1,0.53234]
[1733007853065,0.7988,3723.0,3721.8,3.0]
[1733007853389,0.7988,3723.0,3722.4,2.68642]
[1733007853598,0.7988,3723.0,3722.6,2.68627]
[1733007854094,0.7988,3723.0,3722.7,2.68617]
[1733007854388,0.7988,3723.0,3722.5,2.68635]
[1733007855182,0.7988,3723.0,3722.6,2.68627]
[1733007855381,0.7988,3723.0,3722.5,2.68635]
[1733007855589,0.7988,3723.3,3722.6,2.68629]
[1733007855809,0.7988,3723.3,3722.5,0.268635]
[1733007856021,0.7988,3723.3,3722.6,2.68623]
[1733007856223,0.7988,3723.3,3722.7,2.6862]
[1733007856524,0.7988,3723.3,3722.7,5.3724]
[1733007856729,0.7988,3723.3,3722.7,2.68616]
[1733007857096,0.7988,3723.3,3722.7,2.68615]
[1733007857299,0.7988,3723.3,3722.6,2.68629]
[1733007857823,0.7988,3723.3,3722.8,2.68613]
[1733007858023,0.7988,3723.3,3722.9,2.68602]
[1733007858225,0.7988,3723.3,3722.5,0.268635]
[1733007858226,2.54315999,3724.4,3722.5,1.090735]
[1733007858526,0.7988,3723.8,3723.5,2.68563]
[1733007858730,0.7988,3724.1,3723.3,2.68578]
[1733007859026,0.7988,3724.1,3723.2,0.8221]
[1733007859027,0.7988,3724.1,3723.7,2.68549]
[1733007859913,0.7988,3724.1,3723.5,2.68561]
[1733007860126,0.7988,3724.1,3723.6,2.68555]
[1733007860697,2.68507,3724.3,3723.6,2.68555]
[1733007860905,0.02512862,3724.0,3723.6,2.68555]
[1733007861282,0.02512862,3724.0,3723.4,2.68565]
[1733007861487,0.02512862,3724.0,3723.7,2.68549]
[1733007861722,0.02512862,3724.0,3723.9,2.68535]
[1733007861926,2.68466,3724.9,3724.1,2.68515]
[1733007862095,3.290742,3724.9,3724.1,2.68515]
[1733007862296,0.02531215,3724.8,3724.2,2.6851]
[1733007862498,0.02531215,3724.8,3723.7,3.0]
[1733007862733,0.02531215,3724.8,3723.8,0.7702]
[1733007862918,0.02531215,3724.8,3724.4,2.68493]
[1733007863128,0.833,3725.1,3724.4,2.68493]
[1733007863336,0.02534042,3724.7,3724.4,2.68493]
[1733007863631,1.453178,3725.1,3724.4,2.68493]
[1733007863813,4.137678,3725.1,3724.4,2.68493]
[1733007866006,2.68457,3725.0,3724.1,2.68514]
[1733007866206,2.68457,3725.0,3724.3,2.685]
[1733007866430,0.6822088,3725.0,3724.4,2.68496]
[1733007866853,3.3667888,3725.0,3724.3,2.68506]
[1733007867156,2.68463,3724.9,3724.2,2.6851]
[1733007867514,2.68465,3724.9,3724.0,2.68527]
[1733007867711,0.6822088,3725.0,3724.0,2.68527]
[1733007867948,0.6822088,3725.0,3724.3,2.68505]
[1733007868365,0.6822088,3725.0,3723.8,3.45555]
[1733007868516,2.68495,3724.5,3723.8,2.68542]
[1733007868711,0.833,3724.4,3723.8,3.0]
[1733007868945,0.833,3724.4,3723.9,2.6853]
[1733007869116,0.833,3724.4,3723.8,3.0]
[1733007869435,0.833,3724.9,3724.2,2.68508]
[1733007869769,3.5177,3724.9,3724.2,2.68508]
[1733007870118,0.833,3724.9,3724.2,2.68508]
[1733007870318,2.68478,3724.7,3724.1,2.6852]
[1733007871253,2.68493,3724.5,3723.8,0.37702]
[1733007871424,2.68492,3724.5,3723.8,5.68541]
[1733007871619,0.833,3724.4,3723.8,3.0]
[1733007871930,2.68485,3724.6,3723.2,5.37172]
[1733007871931,0.833,3724.2,3723.2,5.37172]
[1733007872124,0.833,3725.0,3724.3,2.68505]
[1733007872321,2.68472,3724.8,3724.1,2.68521]
[1733007872632,3.5176,3725.0,3724.2,2.68513]
[1733007872816,3.5176,3725.0,3724.4,2.68498]
[1733007872817,1.453209,3725.0,3724.4,2.68498]
[1733007873017,2.68493,3724.5,3723.6,0.7702]
[1733007873319,2.68506,3724.3,3723.5,2.68561]
[1733007874019,0.833,3724.4,3723.3,0.7702]
[1733007874259,0.833,3724.4,3723.9,2.68535]
[1733007874559,0.833,3724.4,3724.0,2.68528]
[1733007874926,0.833,3724.4,3723.8,2.68539]
[1733007875255,0.833,3724.4,3723.9,2.68534]
[1733007877260,0.833,3724.4,3723.8,2.68542]
[1733007877434,0.833,3724.4,3723.9,2.68534]
[1733007877846,0.833,3724.4,3723.6,2.68552]
[1733007878042,0.833,3724.4,3723.8,2.68537]
[1733007878429,0.833,3724.4,3723.6,2.68552]
[1733007878628,0.833,3724.4,3723.9,2.68533]
[1733007879169,0.683,3724.4,3723.6,3.331092]
[1733007879459,0.683,3724.4,3723.8,2.68537]
[1733007879659,0.683,3724.4,3723.9,2.68534]
[1733007880319,0.683,3724.4,3723.3,3.7702]
[1733007880320,0.683,3724.4,3723.5,2.68563]
[1733007880518,0.683,3724.4,3723.8,2.68541]
[1733007880930,0.683,3724.4,3723.9,2.68533]
[1733007883681,0.683,3724.4,3724.0,2.68527]
[1733007883885,0.41795303,3725.5,3723.7,3.4917]
[1733007883886,0.25087388,3724.6,3723.7,3.4917]
[1733007884094,0.782,3724.8,3723.8,0.6680443]
[1733007884242,0.782,3724.8,3724.3,2.68506]
[1733007884577,3.71761196,3724.8,3724.0,2.68523]
[1733007884780,0.25085196,3724.7,3724.0,2.68523]
[1733007885072,0.25085196,3724.7,3724.2,2.68509]
[1733007885276,0.25085196,3724.6,3723.8,0.6680443]
[1733007885439,0.25085196,3725.0,3724.6,2.68485]
[1733007885641,0.25085196,3725.2,3724.7,2.68471]
[1733007885839,0.25103558,3725.1,3724.7,2.68471]
[1733007886083,0.25103558,3725.2,3724.7,2.68471]
[1733007886245,0.25103558,3725.1,3724.8,2.6847]
[1733007886445,0.25103558,3725.2,3724.8,2.6847]
[1733007886760,0.782,3725.3,3724.8,2.6847]
[1733007887058,0.782,3725.3,3724.5,0.8062]
[1733007887377,0.782,3725.3,3724.8,2.68467]
[1733007889764,0.782,3725.3,3724.8,2.6847]
[1733007890459,0.25114356,3725.2,3724.5,0.8062]
[1733007890651,0.25114356,3725.2,3725.1,2.68449]
[1733007890856,0.782,3725.7,3724.6,0.634936]
[1733007891054,0.25113093,3725.6,3725.1,2.68448]
[1733007891255,0.25113093,3725.5,3724.9,2.68462]
[1733007891484,0.25113093,3725.4,3725.2,2.6844]
[1733007891752,0.25113093,3725.6,3725.2,2.6844]
[1733007891979,0.25113093,3725.5,3725.2,2.6844]
[1733007892187,0.25113093,3725.4,3725.2,2.6844]
[1733007892395,0.25113093,3725.6,3725.2,2.6844]
[1733007892600,0.25113093,3725.5,3725.2,2.6844]
[1733007893100,0.25113093,3725.4,3725.2,2.6844]
[1733007893258,0.25113093,3725.6,3725.2,2.6844]
[1733007893602,0.25113093,3725.5,3725.2,2.6844]
[1733007893757,0.25113093,3725.6,3725.2,2.6844]
[1733007893958,0.25113093,3725.5,3725.2,2.6844]
[1733007894158,0.25113093,3725.6,3725.2,2.6844]
[1733007895097,0.25113093,3725.5,3725.0,2.68454]
[1733007895254,0.25113093,3725.6,3725.0,2.68454]
[1733007895593,0.25113093,3725.5,3725.0,2.68454]
[1733007895782,0.25113093,3725.6,3725.0,2.68454]
[1733007896089,0.25113093,3725.5,3725.0,2.68454]
[1733007896296,0.25113093,3725.6,3725.0,2.68454]
[1733007896688,0.25113093,3725.5,3725.0,2.68454]
[1733007897024,0.25113093,3725.6,3725.0,2.68454]
[1733007897232,0.25113093,3725.5,3725.0,2.68454]
[1733007897529,0.25113093,3725.6,3725.0,3.221464]
[1733007898346,3.46611,3725.7,3725.0,3.221464]
[1733007899402,0.782,3725.7,3725.0,0.536924]
[1733007899710,0.2508494,3725.6,3725.4,2.68421]
[1733007900021,0.2508494,3725.6,3725.3,2.68432]
[1733007900831,0.2508494,3725.6,3725.1,0.8062]
[1733007901741,0.2508494,3725.6,3725.2,2.68438]
[1733007903114,0.2508494,3725.6,3725.3,2.68432]
[1733007903325,0.2508494,3725.6,3725.5,2.6842]
[1733007904009,0.2508494,3725.6,3725.5,6.50713702]
[1733007904220,0.2508494,3725.6,3725.5,6.4803]
[1733007905125,3.77685029,3727.0,3725.5,6.4803]
[1733007905126,0.8309,3726.9,3726.6,2.68341]
[1733007905472,0.7309,3726.9,3726.5,2.68342]
[1733007905766,0.7309,3726.9,3726.6,2.6834]
[1733007906067,1.09373029,3727.0,3726.6,2.6834]
[1733007906237,1.09373029,3727.0,3726.4,2.68354]
[1733007906571,1.09373029,3727.0,3726.4,2.68349]
[1733007906971,1.09373029,3727.0,3726.6,2.6834]
[1733007907158,1.09373029,3727.0,3726.4,2.68349]
[1733007907360,0.1593607,3727.1,3726.5,2.68347]
[1733007907897,2.68312,3727.0,3726.0,3.0]
[1733007908173,0.44359377,3727.1,3725.9,3.0]
[1733007908174,2.68353,3726.5,3725.9,3.0]
[1733007908543,3.51445,3726.4,3725.6,0.7961]
[1733007908739,3.51445,3726.4,3725.7,3.0]
[1733007908944,2.68369,3726.3,3725.7,3.0]
[1733007909189,2.68362,3726.3,3725.6,0.7961]
[1733007909327,3.51446,3726.4,3725.6,1.444137]
[1733007909533,3.51446,3726.4,3721.9,2.37844352]
[1733007909534,0.8309,3725.6,3724.7,3.48082]
[1733007909731,2.68441,3725.3,3723.9,0.8323]
[1733007909958,0.2,3726.5,3724.2,2.54315999]
[1733007909959,0.8065,3725.4,3724.2,2.54315999]
[1733007910163,0.8065,3726.3,3724.6,5.22796999]
[1733007910366,0.8065,3726.3,3725.4,2.68421]
[1733007910367,2.68382,3726.1,3725.4,2.68421]
[1733007910577,0.8065,3726.3,3725.0,2.54315999]
[1733007910744,0.8065,3726.3,3725.5,0.8323]
[1733007911077,0.1593607,3727.1,3726.6,2.68335]
[1733007911533,0.1593607,3727.1,3726.4,2.68349]
[1733007911788,2.8424607,3727.1,3726.2,2.68368]
[1733007911993,2.68347,3726.6,3725.8,2.68395]
[1733007912227,0.8065,3727.0,3725.8,2.68398]
[1733007912520,0.8065,3727.0,3726.3,2.68362]
[1733007912734,3.48964,3727.0,3725.6,5.68412]
[1733007912915,3.48964,3727.0,3725.1,3.51677]
[1733007912916,0.8065,3726.8,3725.1,3.51677]
[1733007913083,0.8065,3726.6,3725.2,0.351677]
[1733007913285,0.8065,3726.6,3726.0,2.68382]
[1733007913587,0.8065,3726.6,3726.2,2.68369]
[1733007913787,3.34965999,3727.0,3725.6,0.8323]
[1733007913983,3.34965999,3727.0,3725.1,0.8323]
[1733007913984,0.8065,3726.1,3725.1,0.8323]
[1733007914298,2.54315999,3727.0,3725.1,0.8323]
[1733007914299,0.8065,3726.5,3725.2,2.54315999]
[1733007914499,0.8065,3726.9,3726.3,2.68361]
[1733007914683,0.1593607,3727.1,3725.9,0.8323]
[1733007914684,0.1593607,3727.1,3726.1,2.68377]
[1733007914885,0.1593607,3727.1,3726.7,2.68332]
[1733007915186,0.1593607,3727.1,3726.8,2.68325]
[1733007915618,0.1593607,3727.1,3727.0,2.68312]
[1733007916003,0.1593607,3727.1,3727.0,3.302987]
[1733007916404,0.1593607,3727.1,3727.0,0.619867]
[1733007916705,0.1593607,3727.1,3727.0,3.302987]
[1733007922557,0.1593607,3727.1,3726.7,3.0]
[1733007922836,0.1593607,3727.1,3726.3,0.7814]
[1733007923057,0.1593607,3727.1,3727.0,6.46452]
[1733007924651,0.8181,3728.5,3727.8,2.68248]
[1733007925345,0.8181,3728.5,3728.0,2.68233]
[1733007925543,0.8181,3728.5,3727.8,2.68248]
[1733007925709,0.8181,3728.5,3727.9,0.346388]
[1733007926050,0.7681,3728.9,3727.9,0.346388]
[1733007926403,0.7681,3728.9,3728.2,2.68224]
[1733007926944,0.7681,3728.9,3727.9,0.346388]
[1733007927147,2.68188,3728.8,3727.9,0.8]
[1733007927347,0.7681,3728.9,3728.1,2.68226]
[1733007928143,2.68191,3728.7,3727.9,0.8]
[1733007928346,3.44986,3728.9,3727.9,0.8]
[1733007928553,2.68193,3728.7,3728.0,0.348247]
[1733007928753,2.68198,3728.6,3728.0,0.348247]
[1733007928921,2.68219,3728.3,3727.3,2.68288]
[1733007929108,0.7677,3727.9,3726.4,0.8]
[1733007929311,2.68275,3727.6,3726.8,2.6832]
[1733007929548,2.68275,3727.6,3726.9,2.68317]
[1733007929755,0.7677,3727.9,3727.0,0.268317]
[1733007929909,2.68216,3728.4,3727.5,2.68271]
[1733007930110,0.7677,3728.3,3727.8,2.68254]
[1733007930311,3.44989,3728.3,3727.6,2.68265]
[1733007930566,0.7677,3728.3,3727.8,2.68254]
[1733007930884,0.7677,3728.3,3727.7,2.68261]
[1733007931072,2.68238,3728.1,3727.4,0.8]
[1733007931241,2.68238,3728.1,3727.4,0.38]
[1733007931441,3.4499,3728.3,3727.4,0.38]
[1733007931678,2.68228,3728.2,3727.5,2.68275]
[1733007932281,0.07341079,3728.1,3727.5,2.68275]
[1733007933162,2.75575079,3728.1,3727.4,0.38]
[1733007933685,2.68244,3728.0,3727.4,0.38]
[1733007934045,0.07338151,3727.9,3727.4,0.38]
[1733007934789,0.07338151,3727.9,3727.4,3.06282]
[1733007934989,2.75586151,3727.9,3727.4,0.38]
[1733007935285,0.07333167,3727.8,3727.4,0.38]
[1733007936142,2.6824,3728.0,3727.4,0.38]
[1733007936342,0.07283861,3727.7,3727.3,3.0]
[1733007936578,2.6824,3728.0,3727.3,5.6829]
[1733007936806,0.0728174,3727.6,3727.3,3.0]
[1733007936970,2.68245,3728.0,3727.2,2.68297]
[1733007937157,0.07279381,3727.5,3727.2,2.68297]
[1733007937364,2.68245,3728.0,3727.3,1.116609]
[1733007937558,0.07277261,3727.4,3727.3,1.116609]
[1733007937757,2.68248,3727.9,3727.3,1.116609]
[1733007937955,2.6829,3727.3,3727.0,2.0]